fUSD/lending_fUSD_20260227
["ID","MTS","AMOUNT","RATE_DAILY","PERIOD"]
[406785406,1772191839678,-250.0,0.00011129,2]
[406785407,1772191839687,-500.0,0.00011129,2]
[406785408,1772191839697,-151.0,0.00011129,2]
[406785409,1772191839706,-250.0,0.00011129,2]
[406785410,1772191839716,-500.0,0.00011129,2]
[406785411,1772191839726,-250.0,0.00011129,2]
[406785412,1772191839735,-500.0,0.00011129,2]
[406785413,1772191839745,-500.0,0.00011129,2]
[406785414,1772191839754,-250.0,0.00011129,2]
[406785415,1772191839764,-500.0,0.00011129,2]
[406785416,1772191839773,-500.0,0.00011129,2]
[406785417,1772191839782,-250.0,0.00011129,2]
[406785418,1772191839791,-500.0,0.00011129,2]
[406785419,1772191839801,-500.0,0.00011129,2]
[406785420,1772191839812,-250.0,0.00011129,2]
[406785421,1772191839822,-500.0,0.00011129,2]
[406785422,1772191839832,-500.0,0.00011129,2]
[406785423,1772191839842,-250.0,0.00011129,2]
[406785424,1772191839851,-500.0,0.00011129,2]
[406785425,1772191839860,-500.0,0.00011129,2]
[406785426,1772191839870,-500.0,0.00011129,2]
[406785427,1772191839880,-500.0,0.00011129,2]
[406785428,1772191839889,-500.0,0.00011129,2]
[406785429,1772191839898,-500.0,0.00011129,2]
[406785430,1772191839908,-500.0,0.00011129,2]
[406785431,1772191839918,-668.65185757,0.00011129,2]
[406785432,1772191839927,-500.0,0.00011129,2]
[406785433,1772191839937,-500.0,0.00011129,2]
[406785434,1772191839947,-500.0,0.00011129,2]
[406785435,1772191839956,-500.0,0.00011129,2]
[406785436,1772191839966,-500.0,0.00011129,2]
[406785437,1772191839975,-324.94565365,0.00011129,2]
[406785438,1772191839984,-267.46074303,0.00011129,2]
[406785439,1772191839994,-500.0,0.00011129,2]
[406785440,1772191840003,-500.0,0.00011129,2]
[406785441,1772191840013,-500.0,0.00011129,2]
[406785442,1772191840022,-500.0,0.00011129,2]
[406785443,1772191840032,-500.0,0.00011129,2]
[406785444,1772191840041,-500.0,0.00011129,2]
[406785445,1772191840051,-500.0,0.00011129,2]
[406785446,1772191840062,-269.917619,0.00011129,2]
[406785447,1772191840071,-500.0,0.00011129,2]
[406785448,1772191840091,-500.0,0.00011129,2]
[406785449,1772191840103,-500.0,0.00011129,2]
[406785450,1772191840113,-500.0,0.00011129,2]
[406785451,1772191840123,-500.0,0.00011129,2]
[406785452,1772191840134,-27646.05,0.00011141,2]
[406785453,1772191840144,-693.3919763,0.00011184,2]
[406785454,1772191840154,-166.66,0.00011211,2]
[406785455,1772191840167,-183.5,0.00011233,2]
[406785456,1772191840177,-719.04747942,0.00011239,2]
[406785457,1772191840186,-745.65223616,0.00011294,2]
[406785458,1772191840196,-2635.0,0.00011312,2]
[406785459,1772191840206,-250.0,0.00011338,2]
[406785460,1772191840215,-773.2413689,0.00011349,2]
[406785461,1772191840225,-1363.99,0.0001137,2]
[406785462,1772191840234,-801.85129955,0.00011404,2]
[406785463,1772191840244,-736.0,0.00011408,2]
[406785464,1772191840254,-831.51979763,0.00011459,2]
[406785465,1772191840264,-862.28603014,0.00011514,2]
[406785466,1772191840274,-166.66,0.00011538,2]
[406785467,1772191840285,-894.19061326,0.00011569,2]
[406785468,1772191840295,-150.0,0.000116,2]
[406785469,1772191840306,-927.27566595,0.00011624,2]
[406785470,1772191840316,-1363.99,0.00011644,2]
[406785471,1772191840325,-200.0,0.00011644,2]
[406785472,1772191840335,-181.08010149,0.00011677,2]
[406785473,1772191840344,-771.01748645,0.00011677,2]
[406785474,1772191840354,-277.35679052,0.00011677,2]
[406785475,1772191840363,-279.9045709,0.00011677,2]
[406785476,1772191840372,-961.58486559,0.00011679,2]
[406785477,1772191840382,-997.16350561,0.00011734,2]
[406785478,1772191840392,-1363.99,0.00011918,2]
[406785479,1772191840401,-299.99,0.00012087,2]
[406785480,1772191840410,-150.99,0.00012087,2]
[406785481,1772191840419,-3715.74,0.00012087,2]
[406785482,1772191840429,-9999.99,0.00012087,2]
[406785483,1772191840439,-150.99,0.00012087,2]
[406785484,1772191840449,-155.0,0.00012155,2]
[406785485,1772191840458,-1363.99,0.00012192,2]
[406785486,1772191840467,-200.0,0.00012192,2]
[406785487,1772191840478,-187.78006525,0.00012225,2]
[406785488,1772191840489,-799.54513345,0.00012225,2]
[406785489,1772191840499,-287.61899177,0.00012225,2]
[406785490,1772191840509,-290.26104003,0.00012225,2]
[406785491,1772191840519,-362.12658,0.00012263,2]
[406785492,1772191840528,-941.785048,0.00012373,2]
[406785493,1772191840537,-2584.619468,0.00012373,2]
[406785494,1772191840547,-1363.99,0.00012466,2]
[406785495,1772191840556,-1252.0,0.00012548,2]
[406785496,1772191840565,-157.75,0.0001262,2]
[406785497,1772191840575,-1363.99,0.0001274,2]
[406785498,1772191840584,-200.0,0.0001274,2]
[406785499,1772191840593,-194.72792766,0.00012773,2]
[406785500,1772191840603,-829.12830338,0.00012773,2]
[406785501,1772191840612,-298.26089446,0.00012773,2]
[406785502,1772191840621,-174.05037079,0.00012773,2]
[406785503,1772191840635,-500.0,0.0001289,2]
[406785504,1772191840644,-500.0,0.0001289,2]
[406785505,1772191840653,-500.0,0.0001289,2]
[406785506,1772191840662,-500.0,0.0001289,2]
[406785507,1772191840670,-500.0,0.0001289,2]
[406785508,1772191840680,-500.0,0.0001289,2]
[406785509,1772191840689,-500.0,0.0001289,2]
[406785510,1772191840698,-500.0,0.0001289,2]
[406785511,1772191840707,-500.0,0.0001289,2]
[406785512,1772191840716,-500.0,0.0001289,2]
[406785513,1772191840726,-500.0,0.0001289,2]
[406785514,1772191840734,-500.0,0.0001289,2]
[406785515,1772191840743,-500.0,0.0001289,2]
[406785516,1772191840752,-500.0,0.0001289,2]
[406785517,1772191840761,-500.0,0.0001289,2]
[406785518,1772191840770,-500.0,0.0001289,2]
[406785519,1772191840779,-500.0,0.0001289,2]
[406785520,1772191840789,-500.0,0.0001289,2]
[406785521,1772191840798,-500.0,0.0001289,2]
[406785522,1772191840807,-500.0,0.0001289,2]
[406785523,1772191840816,-500.0,0.0001289,2]
[406785524,1772191840825,-500.0,0.0001289,2]
[406785525,1772191840834,-500.0,0.0001289,2]
[406785526,1772191840843,-500.0,0.0001289,2]
[406785527,1772191840852,-500.0,0.0001289,2]
[406785528,1772191840861,-500.0,0.0001289,2]
[406785529,1772191840870,-500.0,0.0001289,2]
[406785530,1772191840879,-500.0,0.0001289,2]
[406785531,1772191840888,-500.0,0.0001289,2]
[406785532,1772191840897,-500.0,0.0001289,2]
[406785533,1772191840906,-500.0,0.0001289,2]
[406785534,1772191840916,-500.0,0.0001289,2]
[406785535,1772191840925,-500.0,0.0001289,2]
[406785536,1772191840934,-500.0,0.0001289,2]
[406785537,1772191840943,-500.0,0.0001289,2]
[406785538,1772191840953,-500.0,0.0001289,2]
[406785539,1772191840964,-500.0,0.0001289,2]
[406785540,1772191840974,-500.0,0.0001289,2]
[406785541,1772191840984,-500.0,0.0001289,2]
[406785542,1772191840993,-747.36498412,0.0001289,2]
[406785543,1772191841006,-1363.99,0.00013014,2]
[406785544,1772191841015,-1363.99,0.00013288,2]
[406785545,1772191841025,-200.0,0.00013288,2]
[406785546,1772191841034,-201.93286099,0.00013321,2]
[406785547,1772191841043,-859.80605061,0.00013321,2]
[406785548,1772191841052,-309.29654756,0.00013321,2]
[406785549,1772191841062,-3240.0,0.00013425,2]
[406785550,1772191841234,-332.28,0.00013551,2]
[406785551,1772191841244,-1363.99,0.00013562,2]
[406785552,1772191841254,-27278.73292219,0.00013686,2]
[406785553,1772191841263,-2516.92470873,0.00013686,2]
[406785554,1772191841273,-500.0,0.00013698,2]
[406785555,1772191841282,-500.0,0.00013698,2]
[406785556,1772191841292,-500.0,0.00013698,2]
[406785557,1772191841302,-500.0,0.00013698,2]
[406785558,1772191841312,-500.0,0.00013698,2]
[406785559,1772191841322,-500.0,0.00013698,2]
[406785560,1772191841335,-500.0,0.00013698,2]
[406785561,1772191841344,-297.82549676,0.00013698,2]
[406785562,1772191841354,-500.0,0.00013698,2]
[406785563,1772191841363,-383.3281671,0.00013698,2]
[406785564,1772191841372,-500.0,0.00013698,2]
[406785565,1772191841383,-16301.24,0.00013699,2]
[406785566,1772191841392,-1199.0,0.00013808,2]
[406785567,1772191841401,-1363.99,0.00013836,2]
[406785568,1772191841410,-200.0,0.00013836,2]
[406785569,1772191841419,-599.60298507,0.00013868,2]
[406785570,1772191841428,-721.12765535,0.00013868,2]
[406785571,1772191841438,-209.40437684,0.00013869,2]
[406785572,1772191841447,-891.61887448,0.00013869,2]
[406785573,1772191841456,-320.74051982,0.00013869,2]
[406785574,1772191841466,-207.967867,0.00014109,2]
[406785575,1772191841475,-1364.1149579,0.0001411,2]
[406785576,1772191841484,-200.0,0.00014384,2]
[406785577,1772191841493,-217.15233878,0.00014417,2]
[406785578,1772191841503,-924.60877284,0.00014417,2]
[406785579,1772191841512,-332.60791905,0.00014417,2]
[406785580,1772191841521,-1477.74,0.00014853,2]
[406785581,1772191841531,-509.0,0.0001489,2]
[406785582,1772191841540,-200.0,0.00014932,2]
[406785583,1772191841550,-225.18697532,0.00014965,2]
[406785584,1772191841559,-958.81929743,0.00014965,2]
[406785585,1772191841568,-344.91441206,0.00014965,2]
[406785586,1772191841578,-250.0,0.00015,2]
[406785587,1772191841587,-200.0,0.0001548,2]
[406785588,1772191841596,-233.51889341,0.00015513,2]
[406785589,1772191841605,-653.28068226,0.00015513,2]
[406785590,1772191841614,-357.6762453,0.00015513,2]
[406785591,1772191841624,-155.0,0.00015628,2]
[406785592,1772191841633,-202.72622012,0.00016028,2]
[406785593,1772191841643,-174.00015664,0.00016036,2]
[406785594,1772191841652,-160.0,0.00016036,2]
[406785595,1772191841661,-242.15909246,0.00016061,2]
[406785596,1772191841670,-370.91026638,0.00016061,2]
[406785597,1772191841680,-27278.73292219,0.00016288,2]
[406785598,1772191841689,-2516.92470873,0.00016288,2]
[406785599,1772191841698,-1277.0,0.00016335,2]
[406785600,1772191841708,-150.0,0.00016335,2]
[406785601,1772191841718,-1211.0,0.00016335,2]
[406785602,1772191841731,-921.0,0.00016335,2]
[406785603,1772191841741,-2456.0,0.00016335,2]
[406785604,1772191841751,-3498.0,0.00016335,2]
[406785605,1772191841760,-301.77215,0.00016351,7]
[406785606,1772191841769,-200.0,0.00016438,2]
[406785607,1772191841778,-200.0,0.00016438,2]
[406785608,1772191841788,-200.0,0.00016438,2]
[406785609,1772191841797,-200.0,0.00016438,2]
[406785610,1772191841806,-200.0,0.00016438,2]
[406785611,1772191841815,-247.02426,0.00016438,2]
[406785612,1772191841825,-2197.498445,0.00016498,7]
[406785613,1772191841834,-6030.77876,0.00016498,7]
[406785614,1772191841843,-621.78829552,0.00016607,2]
[406785615,1772191841854,-747.8093786,0.00016607,2]
[406785616,1772191841865,-251.11897888,0.00016609,2]
[406785617,1772191841874,-384.63394623,0.00016609,2]
[406785618,1772191841883,-9831.0,0.00016969,2]
[406785619,1772191841892,-300.0,0.00017,2]
[406785620,1772191841901,-168.0,0.00017093,2]
[406785621,1772191841911,-5023.56372798,0.000171,2]
[406785622,1772191841921,-5000.0,0.000171,2]
[406785623,1772191841931,-260.4103811,0.00017157,2]
[406785624,1772191841940,-398.86540225,0.00017157,2]
[406785625,1772191841950,-168.0,0.00017682,2]
[406785626,1772191841959,-270.0455652,0.00017705,2]
[406785627,1772191841969,-509.0,0.00017721,4]
[406785628,1772191841978,-1570.12213956,0.0001797,2]
[406785629,1772191841988,-308.59204947,0.00017973,2]
[406785630,1772191841997,-500.0,0.00017973,2]
[406785631,1772191842007,-520.55026084,0.00017973,2]
[406785632,1772191842016,-500.0,0.00017973,2]
[406785633,1772191842025,-504.20237615,0.00017973,2]
[406785634,1772191842034,-200.0,0.00018128,2]
[406785635,1772191842043,-280.03725112,0.00018253,2]
[406785636,1772191842053,-799.41,0.000183,7]
[406785637,1772191842062,-1000.0,0.00018521,2]
[406785638,1772191842071,-1000.0,0.00018521,2]
[406785639,1772191842080,-290.39862941,0.00018801,2]
[406785640,1772191842094,-27278.73292219,0.0001889,2]
[406785641,1772191842106,-2516.92470873,0.0001889,2]
[406785642,1772191842115,-7918.42319035,0.00019235,2]
[406785643,1772191842125,-1211.0,0.00019335,2]
[406785644,1772191842135,-921.0,0.00019335,2]
[406785645,1772191842144,-2456.0,0.00019335,2]
[406785646,1772191842153,-3496.0,0.00019335,2]
[406785647,1772191842163,-644.79446246,0.00019346,2]
[406785648,1772191842172,-775.4783256,0.00019346,2]
[406785649,1772191842182,-301.1433787,0.00019349,2]
[406785651,1772191842191,-509.0,0.00020552,7]
[406785653,1772191842201,-27278.73292219,0.00021492,2]
[406785655,1772191842210,-2516.92470873,0.00021492,2]
[406785657,1772191842219,-500.0,0.00021589,2]
[406785660,1772191842228,-500.0,0.00021644,2]
[406785661,1772191842238,-500.0,0.00021644,2]
[406785663,1772191842248,-445.0,0.00021644,2]
[406785664,1772191842257,-500.0,0.00021644,2]
[406785665,1772191842266,-500.0,0.00021644,2]
[406785666,1772191842276,-500.0,0.00021644,2]
[406785667,1772191842284,-205.97279745,0.00021644,2]
[406785668,1772191842294,-150.0,0.00021644,2]
[406785669,1772191842303,-150.0,0.00021644,2]
[406785670,1772191842313,-500.0,0.00021699,2]
[406785671,1772191842322,-500.0,0.00021699,2]
[406785672,1772191842331,-445.0,0.00021699,2]
[406785673,1772191842341,-500.0,0.00021699,2]
[406785675,1772191842350,-500.0,0.00021699,2]
[406785676,1772191842360,-500.0,0.00021699,2]
[406785677,1772191842369,-155.24410738,0.00021699,2]
[406785678,1772191842379,-158.41955894,0.00021699,2]
[406785679,1772191842389,-500.0,0.00021754,2]
[406785681,1772191842399,-164.37590583,0.00021754,2]
[406785683,1772191842409,-445.0,0.00021754,2]
[406785684,1772191842418,-500.0,0.00021754,2]
[406785685,1772191842428,-500.0,0.00021754,2]
[406785686,1772191842438,-500.0,0.00021754,2]
[406785687,1772191842449,-500.0,0.00021808,2]
[406785688,1772191842458,-445.0,0.00021808,2]
[406785689,1772191842469,-500.0,0.00021808,2]
[406785690,1772191842480,-500.0,0.00021808,2]
[406785691,1772191842492,-150.0,0.00021808,2]
[406785692,1772191842502,-500.0,0.00021863,2]
[406785693,1772191842512,-445.0,0.00021863,2]
[406785694,1772191842521,-500.0,0.00021863,2]
[406785695,1772191842530,-400.0,0.00021863,2]
[406785696,1772191842540,-500.0,0.00021918,2]
[406785697,1772191842549,-445.0,0.00021918,2]
[406785698,1772191842560,-173.9792448,0.00021918,2]
[406785699,1772191842569,-150.0,0.00021918,2]
[406785700,1772191842579,-152.8213546,0.00021955,2]
[406785701,1772191842588,-497.09622115,0.00021973,2]
[406785702,1772191842597,-445.0,0.00021973,2]
[406785703,1772191842609,-445.0,0.00022028,2]
[406785704,1772191842618,-445.0,0.00022082,2]
[406785705,1772191842628,-668.65185757,0.00022085,2]
[406785706,1772191842637,-445.0,0.00022137,2]
[406785707,1772191842647,-445.0,0.00022192,2]
[406785708,1772191842656,-445.0,0.00022247,2]
[406785709,1772191842667,-2398.24,0.000223,14]
[406785710,1772191842677,-445.0,0.00022302,2]
[406785711,1772191842686,-1211.0,0.00022335,2]
[406785712,1772191842696,-921.0,0.00022335,2]
[406785713,1772191842708,-291.99,0.00022348,30]
[406785714,1772191842718,-445.0,0.00022356,2]
[406785715,1772191842728,-445.0,0.00022411,2]
[406785716,1772191842737,-445.0,0.00022466,2]
[406785717,1772191842747,-445.0,0.00022521,2]
[406785718,1772191842756,-155.0,0.00022573,2]
[406785719,1772191842765,-445.0,0.00022576,2]
[406785720,1772191842775,-445.0,0.0002263,2]
[406785721,1772191842784,-445.0,0.00022685,2]
[406785726,1772191842901,-445.0,0.0002274,2]
[406785728,1772191842922,-445.0,0.00022795,2]
[406785730,1772191842932,-445.0,0.00022849,2]
[406785732,1772191842941,-451.80649406,0.00022904,2]
[406785734,1772191842950,-160.0,0.00023,2]
[406785736,1772191842959,-332.28,0.00023014,2]
[406785738,1772191842969,-1055.52,0.00023207,2]
[406785740,1772191842978,-509.0,0.00023383,9]
[406785742,1772191842987,-7918.42319032,0.00023587,2]
[406785744,1772191842997,-992.17539101,0.00023783,2]
[406785746,1772191843006,-1843.18097405,0.00023935,2]
[406785748,1772191843016,-150.0,0.00023996,2]
[406785750,1772191843025,-70156.0,0.00024,2]
[406785752,1772191843034,-27278.73292219,0.00024094,2]
[406785754,1772191843043,-2516.92470873,0.00024094,2]
[406785757,1772191843053,-150.0,0.00024234,2]
[406785760,1772191843063,-5531.0,0.000245,3]
[406785763,1772191843072,-2022.00864656,0.00024657,2]
[406785766,1772191843081,-150.0,0.00024658,2]
[406785768,1772191843092,-152.8213546,0.00024699,2]
[406785771,1772191843105,-693.3919763,0.00024824,2]
[406785773,1772191843115,-52754.8,0.00024882,2]
[406785775,1772191843124,-500.0,0.00024932,2]
[406785776,1772191843134,-233.84,0.00024947,2]
[406785777,1772191843143,-5531.0,0.00025,5]
[406785778,1772191843153,-1211.0,0.00025335,2]
[406785779,1772191843162,-921.0,0.00025335,2]
[406785780,1772191843173,-1267.0,0.00025431,10]
[406785781,1772191843182,-787.0,0.00025431,10]
[406785782,1772191843191,-150.0,0.0002589,2]
[406785783,1772191843200,-509.0,0.00026214,12]
[406785784,1772191843210,-291.99,0.00026301,30]
[406785785,1772191843219,-5513.8,0.00026388,2]
[406785786,1772191843227,-318.38,0.00026388,2]
[406785787,1772191843236,-500.0,0.00026521,2]
[406785788,1772191843245,-160.10219675,0.00026575,2]
[406785789,1772191843254,-27278.73292219,0.00026696,2]
[406785790,1772191843264,-2516.92470873,0.00026696,2]
[406785791,1772191843273,-731.382172,0.00026756,2]
[406785792,1772191843282,-731.382172,0.00026756,2]
[406785793,1772191843292,-731.382172,0.00026756,2]
[406785794,1772191843302,-731.382172,0.00026756,2]
[406785795,1772191843312,-151.0,0.00026756,2]
[406785796,1772191843321,-150.0,0.00027185,2]
[406785797,1772191843331,-450.07220255,0.00027397,2]
[406785798,1772191843340,-1000.0,0.00027397,20]
[406785799,1772191843350,-300.0,0.00027397,2]
[406785800,1772191843359,-152.8213546,0.00027444,2]
[406785801,1772191843368,-332.28,0.00027507,2]
[406785802,1772191843377,-719.04747942,0.00027563,2]
[406785803,1772191843387,-1998.54,0.000278,14]
[406785804,1772191843396,-7918.42319032,0.00027939,2]
[406785805,1772191843404,-1211.0,0.00028335,2]
[406785806,1772191843413,-908.892,0.00028335,2]
[406785807,1772191843422,-150.0,0.00028544,2]
[406785808,1772191843431,-209.99304853,0.00028588,120]
[406785809,1772191843440,-222.28872477,0.00028588,120]
[406785810,1772191843449,-154.49167072,0.00028588,120]
[406785811,1772191843458,-3856.59986192,0.00028763,2]
[406785812,1772191843467,-509.0,0.00029044,14]
[406785813,1772191843476,-27278.73292219,0.00029298,2]
[406785814,1772191843485,-2516.92470873,0.00029298,2]
[406785815,1772191843495,-324.0,0.00029319,120]
[406785816,1772191843505,-150.0,0.00029971,2]
[406785817,1772191843514,-765.0,0.00029987,2]
[406785818,1772191843523,-150.0,0.00029987,2]
[406785819,1772191843531,-150.0,0.00029987,2]
[406785820,1772191843540,-165.0,0.00029987,2]
[406785821,1772191843549,-500.0,0.00029999,2]
[406785822,1772191843558,-500.0,0.00029999,2]
[406785823,1772191843569,-460.74468726,0.00029999,2]
[406785824,1772191843578,-635.28187734,0.00029999,2]
[406785825,1772191843587,-500.0,0.00029999,2]
[406785826,1772191843606,-315.6577138,0.00029999,2]
[406785827,1772191843616,-151.0,0.00029999,7]
[406785828,1772191843643,-535.21333656,0.00029999,2]
[406785829,1772191843665,-247.36680867,0.00029999,2]
[406785830,1772191843686,-151.0,0.00029999,7]
[406785831,1772191843708,-151.0,0.00029999,7]
[406785832,1772191843727,-151.0,0.00029999,7]
[406785833,1772191843747,-151.0,0.00029999,7]
[406785834,1772191843767,-151.0,0.00029999,7]
[406785835,1772191843787,-500.0,0.00029999,2]
[406785836,1772191843806,-500.0,0.00029999,2]
[406785837,1772191843825,-500.0,0.00029999,2]
[406785838,1772191843848,-500.0,0.00029999,2]
[406785839,1772191843864,-500.0,0.00029999,2]
[406785840,1772191843880,-500.0,0.00029999,2]
[406785841,1772191843897,-500.0,0.00029999,2]
[406785842,1772191843916,-500.0,0.00029999,2]
[406785843,1772191843935,-500.0,0.00029999,2]
[406785844,1772191843954,-500.0,0.00029999,2]
[406785845,1772191843975,-500.0,0.00029999,2]
[406785846,1772191843995,-500.0,0.00029999,2]
[406785847,1772191844016,-500.0,0.00029999,2]
[406785848,1772191844039,-500.0,0.00029999,2]
[406785849,1772191844060,-500.0,0.00029999,2]
[406785850,1772191844078,-163.15267217,0.00029999,2]
[406785851,1772191844105,-500.0,0.00029999,2]
[406785852,1772191844123,-500.0,0.00029999,2]
[406785853,1772191844141,-500.0,0.00029999,2]
[406785854,1772191844159,-252.77720625,0.0003,14]
[406785855,1772191844176,-1000.0,0.0003,14]
[406785856,1772191844193,-152.8213546,0.00030188,2]
[406785857,1772191844209,-291.99,0.00030254,60]
[406785858,1772191844226,-745.65223616,0.00030302,2]
[406785859,1772191844242,-12598.7547324,0.00030381,2]
[406785860,1772191844257,-203.69193972,0.00030381,2]
[406785861,1772191844277,-307.5751693,0.00030381,2]
[406785862,1772191844295,-1618.0,0.00030438,2]
[406785863,1772191844312,-322.40301155,0.00030471,2]
[406785864,1772191844330,-300.0,0.0003048,10]
[406785865,1772191844346,-855090.2682937,0.00030481,2]
[406785866,1772191844361,-151.0,0.00030481,7]
[406785867,1772191844378,-151.0,0.00030481,7]
[406785868,1772191844394,-151.0,0.00030481,7]
[406785869,1772191844410,-27500.1298384,0.00030481,2]
[406785870,1772191844426,-176.639564,0.00030481,7]
[406785871,1772191844445,-176.639564,0.00030481,7]
[406785872,1772191844462,-176.639564,0.00030481,7]
[406785873,1772191844478,-176.639564,0.00030481,7]
[406785874,1772191844497,-487.770219,0.00030481,7]
[406785875,1772191844513,-487.770219,0.00030481,7]
[406785876,1772191844529,-487.770219,0.00030481,7]
[406785877,1772191844544,-487.770219,0.00030481,7]
[406785878,1772191844559,-671.063363,0.00030481,7]
[406785879,1772191844574,-671.063363,0.00030481,7]
[406785880,1772191844590,-671.063363,0.00030481,7]
[406785881,1772191844605,-671.063363,0.00030481,7]
[406785882,1772191844620,-347.32002,0.00030481,7]
[406785883,1772191844635,-347.32002,0.00030481,7]
[406785884,1772191844650,-347.32002,0.00030481,7]
[406785885,1772191844665,-347.32002,0.00030481,7]
[406785886,1772191844680,-151.0,0.00030481,7]
[406785887,1772191844695,-239.608818,0.00030481,7]
[406785888,1772191844712,-239.608818,0.00030481,7]
[406785889,1772191844726,-239.608818,0.00030481,7]
[406785890,1772191844741,-239.608818,0.00030481,7]
[406785891,1772191844756,-151.0,0.00030481,7]
[406785892,1772191844772,-151.0,0.00030481,7]
[406785893,1772191844787,-151.0,0.00030481,7]
[406785894,1772191844802,-151.0,0.00030481,7]
[406785895,1772191844817,-151.0,0.00030481,7]
[406785896,1772191844831,-231.965238,0.00030481,7]
[406785897,1772191844846,-361.292831,0.00030481,7]
[406785898,1772191844861,-361.292831,0.00030481,7]
[406785899,1772191844877,-361.292831,0.00030481,7]
[406785900,1772191844892,-361.292831,0.00030481,7]
[406785901,1772191844907,-151.0,0.00030481,7]
[406785902,1772191844922,-151.0,0.00030481,7]
[406785903,1772191845115,-151.0,0.00030481,7]
[406785904,1772191845147,-322.815662,0.00030481,7]
[406785905,1772191845157,-322.815662,0.00030481,7]
[406785906,1772191845168,-322.815662,0.00030481,7]
[406785908,1772191845184,-322.815662,0.00030481,7]
[406785909,1772191845193,-151.0,0.00030481,7]
[406785910,1772191845202,-151.0,0.00030481,7]
[406785911,1772191845212,-731.382172,0.00030481,7]
[406785912,1772191845222,-731.382172,0.00030481,7]
[406785914,1772191845232,-731.382172,0.00030481,7]
[406785915,1772191845242,-731.382172,0.00030481,7]
[406785917,1772191845264,-151.0,0.00030481,7]
[406785918,1772191845281,-1000.0,0.00030667,14]
[406785919,1772191845291,-324.0,0.00030785,120]
[406785920,1772191845300,-162.0,0.00030864,120]
[406785921,1772191845310,-500.0,0.000309,7]
[406785922,1772191845319,-433.97,0.000309,7]
[406785923,1772191845329,-350.0,0.00030914,3]
[406785924,1772191845339,-1935.7406728,0.00030943,2]
[406785925,1772191845349,-251.0,0.00030999,2]
[406785926,1772191845358,-1000.0,0.00031219,2]
[406785927,1772191845368,-1000.0,0.00031333,14]
[406785928,1772191845379,-1211.0,0.00031335,2]
[406785929,1772191845389,-293.0,0.00031345,2]
[406785930,1772191845400,-350.0,0.00031441,4]
[406785931,1772191845409,-150.0,0.00031468,2]
[406785932,1772191845419,-150.0,0.0003147,2]
[406785933,1772191845428,-302.9348,0.0003158,21]
[406785934,1772191845439,-302.9348,0.0003158,21]
[406785935,1772191845449,-302.93479,0.0003158,21]
[406785936,1772191845459,-302.93479,0.0003158,21]
[406785937,1772191845471,-150.0,0.00031588,2]
[406785938,1772191845481,-300.0,0.00031589,10]
[406785939,1772191845491,-16947.98129421,0.0003159,2]
[406785940,1772191845501,-1000.0,0.00031592,2]
[406785941,1772191845510,-1000.0,0.00031637,2]
[406785942,1772191845522,-1000.0,0.00031638,2]
[406785943,1772191845532,-1000.0,0.00031662,2]
[406785944,1772191845542,-1000.0,0.00031674,2]
[406785945,1772191845552,-1000.0,0.00031711,2]
[406785946,1772191845561,-264.1923484,0.00031727,2]
[406785947,1772191845571,-1000.0,0.00031743,2]
[406785948,1772191845580,-1000.0,0.00031749,2]
[406785949,1772191845590,-150.0,0.00031793,2]